[Event "12th National Amateur Chess-ch 2025"]
[Site "Bihar"]
[Date "2025.03.27"]
[Round "5.11"]
[White "Avyay Sharma"]
[Black "Raj Aryan"]
[Result "1-0"]
[Annotator "NA RC"]
[ECO "C01"]
[WhiteElo "1586"]
[BlackElo "1630"]
[PlyCount "135"]
[EventDate "2025.03.25"]
[EventCountry "IND"]
[SourceTitle "playchess.com"]
[Source "ChessBase"]
[SourceQuality "1"]
[TimeControl "5400+30"]

1. e4 {[%emt 0:00:04]} e6 {[%emt 0:00:45]} 2. d4 {[%emt 0:00:02]} d5 {[%emt 0:00:06]} 3. exd5 {[%emt 0:00:05]} exd5 {[%emt 0:00:06]} 4. c4 {[%emt 0:00:18]} Nf6 {[%emt 0:00:25]} 5. Nc3 {[%emt 0:00:02]} Nc6 {[%emt 0:00:47]} 6. Nf3 {[%emt 0:00:05]} Bg4 {[%emt 0:01:25]} 7. Be3 {[%emt 0:00:15]} Be7 {[%emt 0:06:23]} 8. cxd5 {[%emt 0:01:13]} Nxd5 {[%emt 0:00:32]} 9. Bc4 {[%emt 0:00:05]} Nb6 {[%emt 0:07:24]} 10. Bb3 {[%emt 0:00:08]} O-O {[%emt 0:00:12]} 11. h3 {[%emt 0:07:26]} Bh5 {[%emt 0:04:27]} 12. a3 {[%emt 0:00:27]} Bf6 {[%emt 0:00:39]} 13. g4 {[%emt 0:00:47]} Bg6 {[%emt 0:02:06]} 14. h4 {[%emt 0:00:24]} Re8 {[%emt 0:00:31]} 15. Kf1 {[%emt 0:00:26]} Na5 {[%emt 0:00:59]} 16. Ba2 {[%emt 0:01:12]} Nac4 {[%emt 0:00:16]} 17. h5 {[%emt 0:00:16]} Be4 {[%emt 0:03:11]} 18. Nxe4 {[%emt 0:01:15]} Rxe4 {[%emt 0:00:07]} 19. Qd3 {[%emt 0:02:59]} Nxe3+ {[%emt 0:03:06]} 20. fxe3 {[%emt 0:01:18]} Rxg4 {[%emt 0:00:05]} 21. Qf5 {[%emt 0:00:16]} Qd7 {[%emt 0:00:31]} 22. Bxf7+ {[%emt 0:00:09]} Qxf7 {[%emt 0:05:52]} 23. Qxg4 {[%emt 0:00:12]} Rf8 {[%emt 0:00:03]} 24. Kg2 {[%emt 0:00:14]} Qb3 {[%emt 0:02:13]} 25. Rae1 {[%emt 0:00:45]} Qxb2+ {[%emt 0:04:45]} 26. Kh3 {[%emt 0:00:03]} Qxa3 {[%emt 0:01:04]} 27. Qe6+ {[%emt 0:00:34]} Kh8 {[%emt 0:00:36]} 28. Ra1 {[%emt 0:00:22]} Qb2 {[%emt 0:01:14]} 29. Rhf1 {[%emt 0:00:42]} Qe2 {[%emt 0:04:41]} 30. Kg3 {[%emt 0:03:12]} Qc4 {[%emt 0:05:30]} 31. Qe4 {[%emt 0:00:44]} Qd5 {[%emt 0:00:21]} 32. Qxd5 {[%emt 0:00:30]} Nxd5 {[%emt 0:00:05]} 33. e4 {[%emt 0:00:17]} Ne3 {[%emt 0:00:11]} 34. Rf2 {[%emt 0:00:39]} Nc4 {[%emt 0:05:01]} 35. Rxa7 {[%emt 0:00:11]} Nd6 {[%emt 0:00:50]} 36. Ng5 {[%emt 0:00:43]} h6 {[%emt 0:01:02]} 37. e5 {[%emt 0:00:13]} hxg5 {[%emt 0:00:11]} 38. exd6 {[%emt 0:00:20]} cxd6 {[%emt 0:01:08]} 39. Rxb7 {[%emt 0:00:03]} Re8 {[%emt 0:00:25]} 40. d5 {[%emt 0:00:20]} Re5 {[%emt 0:01:34]} 41. h6 {[%emt 0:00:31]} Re7 {[%emt 0:09:25]} 42. Rxe7 {[%emt 0:00:33]} Bxe7 {[%emt 0:00:08]} 43. Rf7 {[%emt 0:00:08]} Bf6 {[%emt 0:01:06]} 44. hxg7+ {[%emt 0:00:02]} Bxg7 {[%emt 0:00:07]} 45. Rd7 {[%emt 0:00:08]} Be5+ {[%emt 0:01:04]} 46. Kg4 {[%emt 0:00:01]} Bf4 {[%emt 0:02:49]} 47. Kf5 {[%emt 0:00:30]} Kg8 {[%emt 0:00:17]} 48. Re7 {[%emt 0:00:04]} Kf8 {[%emt 0:01:37]} 49. Ke6 {[%emt 0:00:15]} Be5 {[%emt 0:00:22]} 50. Rf7+ {[%emt 0:00:13]} Kg8 {[%emt 0:00:22]} 51. Rf5 {[%emt 0:00:04]} Bf4 {[%emt 0:00:58]} 52. Kf6 {[%emt 0:00:11]} Kf8 {[%emt 0:00:46]} 53. Ke6+ {[%emt 0:00:04]} Kg8 {[%emt 0:00:38]} 54. Rf7 {[%emt 0:00:08]} Be5 {[%emt 0:00:28]} 55. Rf5 {[%emt 0:00:54]} Bf4 {[%emt 0:00:13]} 56. Rf6 {[%emt 0:00:30]} Kg7 {[%emt 0:02:02]} 57. Kf5 {[%emt 0:00:00]} Kh7 {[%emt 0:00:43]} 58. Rg6 {[%emt 0:00:00]} Kh8 {[%emt 0:00:22]} 59. Kf6 {[%emt 0:00:00]} Kh7 {[%emt 0:00:23]} 60. Kf7 {[%emt 0:00:00]} Bh2 {[%emt 0:07:14]} 61. Rxg5 {[%emt 0:00:30]} Kh6 {[%emt 0:00:03]} 62. Rg6+ {[%emt 0:00:17]} Kh5 {[%emt 0:00:18]} 63. Rg8 {[%emt 0:00:13]} Be5 {[%emt 0:00:21]} 64. Ke6 {[%emt 0:00:03]} Kh6 {[%emt 0:01:30]} 65. Rd8 {[%emt 0:00:16]} Kg7 {[%emt 0:02:24]} 66. Rxd6 {[%emt 0:00:03]} Bd4 {[%emt 0:00:14]} 67. Rd8 {[%emt 0:00:12]} Bb6 {[%emt 0:00:09]} 68. Re8 {[%emt 0:00:03]} 1-0

[Event "12th National Amateur Chess-ch 2025"]
[Site "Bihar"]
[Date "2025.03.27"]
[Round "5.12"]
[White "Pathak Anshu Kr"]
[Black "Vamsi Krishna, R."]
[Result "1/2-1/2"]
[Annotator "NA RC"]
[ECO "B13"]
[WhiteElo "1585"]
[BlackElo "1620"]
[PlyCount "118"]
[EventDate "2025.03.25"]
[EventCountry "IND"]
[SourceTitle "playchess.com"]
[Source "ChessBase"]
[SourceQuality "1"]
[TimeControl "5400+30"]

1. e4 {[%emt 0:00:05]} c6 {[%emt 0:05:37]} 2. d4 {[%emt 0:00:15]} d5 {[%emt 0:00:07]} 3. exd5 {[%emt 0:00:25]} cxd5 {[%emt 0:00:31]} 4. Bd3 {[%emt 0:00:37]} Nc6 {[%emt 0:00:11]} 5. c3 {[%emt 0:00:18]} Nf6 {[%emt 0:00:29]} 6. Bf4 {[%emt 0:00:56]} e6 {[%emt 0:01:01]} 7. Qe2 {[%emt 0:03:56]} Bd6 {[%emt 0:00:20]} 8. Bxd6 {[%emt 0:00:36]} Qxd6 {[%emt 0:00:04]} 9. Nf3 {[%emt 0:01:05]} O-O {[%emt 0:00:43]} 10. Ne5 {[%emt 0:07:31]} a6 {[%emt 0:02:57]} 11. Nd2 {[%emt 0:09:42]} b5 {[%emt 0:00:24]} 12. a3 {[%emt 0:00:50]} Na5 {[%emt 0:04:56]} 13. b4 {[%emt 0:12:18]} Nc4 {[%emt 0:01:49]} 14. Nb3 {[%emt 0:07:27]} Nd7 {[%emt 0:03:06]} 15. f4 {[%emt 0:06:15]} f6 {[%emt 0:03:06]} 16. Qh5 {[%emt 0:03:41]} f5 {[%emt 0:00:10]} 17. Nxd7 {[%emt 0:03:27]} Bxd7 {[%emt 0:00:32]} 18. O-O {[%emt 0:02:06]} Ne3 {[%emt 0:04:49]} 19. Rf3 {[%emt 0:05:53]} Ng4 {[%emt 0:00:48]} 20. Rh3 {[%emt 0:07:23]} h6 {[%emt 0:04:30]} 21. Rf1 {[%emt 0:03:33]} Qe7 {[%emt 0:01:40]} 22. Rg3 {[%emt 0:01:48]} Be8 {[%emt 0:01:00]} 23. Qh3 {[%emt 0:00:40]} Nf6 {[%emt 0:14:14]} 24. Qxh6 {[%emt 0:07:15]} Nh5 {[%emt 0:05:36]} 25. Qg5 {[%emt 0:00:37]} Rf6 {[%emt 0:00:32]} 26. Rh3 {[%emt 0:03:29]} Qf7 {[%emt 0:02:59]} 27. Be2 {[%emt 0:01:22]} Rh6 {[%emt 0:00:50]} 28. Bxh5 {[%emt 0:00:17]} Rxh5 {[%emt 0:00:10]} 29. Rxh5 {[%emt 0:00:04]} Qxh5 {[%emt 0:00:05]} 30. Qxh5 {[%emt 0:00:38]} Bxh5 {[%emt 0:00:39]} 31. Kf2 {[%emt 0:00:16]} Kf7 {[%emt 0:00:13]} 32. Re1 {[%emt 0:00:17]} Ke7 {[%emt 0:00:55]} 33. Nc5 {[%emt 0:00:45]} Bf7 {[%emt 0:02:14]} 34. Nb3 {[%emt 0:02:37]} Rc8 {[%emt 0:01:01]} 35. Re3 {[%emt 0:00:25]} Bh5 {[%emt 0:02:07]} 36. Ke1 {[%emt 0:00:26]} Bg4 {[%emt 0:02:53]} 37. Nc5 {[%emt 0:00:19]} Rc6 {[%emt 0:00:41]} 38. h3 {[%emt 0:00:50]} Bh5 {[%emt 0:00:37]} 39. Kd2 {[%emt 0:00:20]} Bf7 {[%emt 0:00:11]} 40. Re1 {[%emt 0:00:31]} Rc8 {[%emt 0:00:39]} 41. Re3 {[%emt 0:01:54]} Ra8 {[%emt 0:00:13]} 42. Ke1 {[%emt 0:00:56]} Ra7 {[%emt 0:01:25]} 43. Kf2 {[%emt 0:00:06]} Ra8 {[%emt 0:00:12]} 44. g4 {[%emt 0:00:34]} g6 {[%emt 0:00:35]} 45. Kg3 {[%emt 0:00:26]} Rh8 {[%emt 0:00:15]} 46. Nxa6 {[%emt 0:01:46]} Kd6 {[%emt 0:01:04]} 47. Nc5 {[%emt 0:00:55]} Ra8 {[%emt 0:00:08]} 48. Kh4 {[%emt 0:00:30]} Rxa3 {[%emt 0:01:05]} 49. Kg5 {[%emt 0:00:53]} Ke7 {[%emt 0:00:19]} 50. Nb7 {[%emt 0:01:49]} Ra7 {[%emt 0:01:02]} 51. Nc5 {[%emt 0:00:08]} Ra3 {[%emt 0:00:42]} 52. Rg3 {[%emt 0:00:10]} Ra8 {[%emt 0:00:04]} 53. Nd3 {[%emt 0:00:09]} Rh8 {[%emt 0:00:41]} 54. Ne5 {[%emt 0:00:14]} Be8 {[%emt 0:02:52]} 55. Re3 {[%emt 0:01:15]} Rg8 {[%emt 0:08:20]} 56. Re1 {[%emt 0:00:42]} Rh8 {[%emt 0:00:07]} 57. Re3 {[%emt 0:02:00]} Rg8 {[%emt 0:00:29]} 58. Re1 {[%emt 0:01:03]} Rh8 {[%emt 0:00:04]} 59. Re3 {[%emt 0:01:19]} Rg8 {[%emt 0:00:39]} 1/2-1/2

[Event "12th National Amateur Chess-ch 2025"]
[Site "Bihar"]
[Date "2025.03.27"]
[Round "5.13"]
[White "Bristy Mukherjee"]
[Black "Arushi Severin Helen D Silva"]
[Result "1-0"]
[Annotator "TA"]
[ECO "A11"]
[WhiteElo "1985"]
[BlackElo "1746"]
[PlyCount "111"]
[EventDate "2025.03.25"]
[EventCountry "IND"]
[SourceTitle "playchess.com"]
[Source "ChessBase"]
[SourceQuality "1"]
[TimeControl "5400+30"]

{[%evp 9,110,0,0,1,5,5,9,6,0,-18,27,11,45,19,39,-6,-4,-18,87,99,77,71,138,125,213,209,299,280,256,288,283,271,268,242,244,227,447,434,443,404,459,438,457,427,455,457,449,441,444,406,430,455,545,514,501,465,507,502,543,429,564,393,852,842,1116,1100,1094,1049,1486,1476,1470,1431,1336,1150,1733,1695,1623,1625,1308,1289,29995,1198,5704,1906,5316,4894,5700,5297,4910,4910,29994,29995,29996,29996,29996,29995,29995,29996,29997,29998,29998,29999,29999]} 1. c4 {[%emt 0:00:26]} Nf6 {[%emt 0:00:41]} 2. g3 {[%emt 0:00:29]} c6 {[%emt 0:01:27]} 3. Bg2 {[%emt 0:00:26]} d5 {[%emt 0:01:52]} 4. b3 {[%emt 0:05:04]} Bg4 {[%emt 0:05:46]} 5. Bb2 {[%emt 0:05:54]} e6 {[%emt 0:01:44]} 6. h3 {[%emt 0:02:31] A11: English Opening: 1...c6.} Bf5 {[%emt 0:01:33]} 7. Nf3 {[%emt 0:00:39]} Nbd7 {[%emt 0:01:25]} 8. d3 {[%emt 0:00:50] The position is equal.} h6 $146 {[%emt 0:03:10]} ({Predecessor:} 8... Bd6 9. Nbd2 h6 10. Qc2 Bh7 11. O-O O-O 12. Rad1 Qb6 13. Kh2 Rfe8 14. Bd4 Bc5 {½-½ Pleasants,A (1982)-Klingher,D (2116) Jersey op St Clement Bay 2017 (4)}) 9. Nbd2 {[%emt 0:01:12][%cal Bb1d2,Bd2c4,Bc4a5][%mdl 32]} Qb6 {[%emt 0:02:55]} 10. O-O {[%emt 0:02:08]} Bg6 {[%emt 0:05:21]} 11. a3 {[%emt 0:02:53]} Rd8 {[%emt 0:02:37]} 12. Qe1 {[%emt 0:03:18]} Be7 {[%emt 0:04:40]} 13. b4 {[%emt 0:11:07]} dxc4 {[%emt 0:03:44]} (13... O-O $11) 14. Nxc4 $16 {[%emt 0:18:33] Black is on the road to losing.} Qc7 {[%emt 0:04:44]} 15. Rc1 {[%emt 0:02:13]} Qb8 {[%emt 0:04:28]} ({Better is} 15... Bh7) 16. Nfe5 {[%emt 0:05:37]} Nf8 {[%emt 0:06:08]} (16... Nxe5 $16 17. Bxe5 Qc8) 17. Na5 {[%emt 0:01:35][%cal Oa5b7]} Rd5 {[%emt 0:02:14]} (17... N8d7) 18. Bxd5 {[%emt 0:01:34]} exd5 {[%emt 0:00:31]} 19. e4 {[%emt 0:01:57] Prevents Bf5.} dxe4 {[%emt 0:05:26]} 20. dxe4 {[%emt 0:10:48]} Bh7 {[%emt 0:04:17]} 21. Nec4 {[%emt 0:04:29]} Ne6 {[%emt 0:01:45]} 22. f3 {[%emt 0:10:24]} Rg8 $2 {[%emt 0:05:18]} (22... O-O {was necessary.} 23. Be5 Qa8) 23. Be5 $18 {[%emt 0:00:52]} Qa8 {[%emt 0:01:49]} 24. Nd6+ {[%emt 0:01:38]} Bxd6 {[%emt 0:03:08]} 25. Bxd6 {[%emt 0:00:05]} g5 {[%emt 0:02:14]} 26. Qc3 {[%emt 0:01:29]} Nd7 {[%emt 0:00:48] [#]} 27. b5 $1 {[%emt 0:00:26]} c5 {[%emt 0:00:54]} 28. Rfd1 {[%emt 0:01:57]} h5 {[%emt 0:03:35]} 29. g4 {[%emt 0:00:30]} hxg4 {[%emt 0:01:36]} 30. hxg4 {[%emt 0:00:03]} Rg6 {[%emt 0:02:55]} 31. Rc2 {[%emt 0:00:23]} Bg8 {[%emt 0:00:59]} 32. Rh2 {[%emt 0:01:13]} a6 {[%emt 0:01:09] [#]} 33. b6 {[%emt 0:01:21]} Nxb6 {[%emt 0:01:17]} (33... Qc8 34. Rh8) 34. Be5 {[%emt 0:01:18]} (34. Bxc5 Na4 35. Qe5 Naxc5 $14) 34... Nd7 {[%emt 0:01:13]} 35. Rhd2 {[%emt 0:00:32]} Nb6 {[%emt 0:01:45]} (35... Nxe5 36. Qxe5 f6) 36. Bf6 {[%emt 0:00:55]} Rxf6 {[%emt 0:02:06]} 37. Qxf6 {[%emt 0:00:06][%cal Oa5b7]} Qb8 {[%emt 0:00:02]} 38. e5 {[%emt 0:00:24]} Qc7 {[%emt 0:02:28] [#]} 39. Nxb7 $1 {[%emt 0:00:24]} Nd4 {[%emt 0:00:18]} (39... Nd7 40. Rxd7) 40. Nd6+ {[%emt 0:00:25]} (40. Qxg5 $2 Nxf3+ 41. Kf1 Nxg5 $19) 40... Kd7 {[%emt 0:00:58][%cal Be8d7,Bd7c8,Bc8b7,Bb7c6,Bc6c7][%mdl 32]} 41. Nf5 {[%emt 0:00:48]} ({Not} 41. Qxg5 Nxf3+ 42. Kf1 Nxg5 $16) 41... Kc8 {[%emt 0:02:52]} 42. Nxd4 {[%emt 0:00:11]} (42. Qxg5 $2 {is the wrong capture.} Nxf3+ 43. Kf1 Nxg5 $19) 42... cxd4 {[%emt 0:00:06]} 43. Rxd4 {[%emt 0:00:04][%cal Od1b1] aiming for Rb1!.} Kb7 {[%emt 0:01:28]} 44. Rb1 {[%emt 0:00:31][%cal Od4d7]} a5 {[%emt 0:00:27]} 45. Qd6 {[%emt 0:00:31]} (45. Rd7 $142 Kc8 46. Rxc7+ Kxc7 47. Qxb6+ (47. Rxb6 Kc8 48. Qd6 Bh7 49. Rb8#) 47... Kc8 48. Qd6 Bh7 49. Rb8#) 45... Qc6 {[%emt 0:00:13]} 46. Qxc6+ {[%emt 0:00:05]} Kxc6 {[%emt 0:00:05]} 47. Rd6+ {[%emt 0:00:03]} Kc7 {[%emt 0:00:07]} 48. Rbxb6 {[%emt 0:00:06]} Bh7 {[%emt 0:00:03]} 49. Ra6 {[%emt 0:00:09] Threatening mate with Ra7+.} Bb1 {[%emt 0:00:09]} 50. Ra7+ {[%emt 0:00:06] White mates.} Kc8 {[%emt 0:00:05]} 51. Rxf7 {[%emt 0:00:20]} Ba2 {[%emt 0:00:29]} 52. e6 {[%emt 0:00:07]} a4 {[%emt 0:00:07]} 53. Rg7 {[%emt 0:00:09]} Bxe6 {[%emt 0:00:16]} 54. Rxe6 {[%emt 0:00:05][%cal Re6e8]} Kd8 {[%emt 0:00:03]} 55. Ra6 {[%emt 0:00:03][%cal Ra6a8]} Kc8 {[%emt 0:00:04]} 56. Ra8# {[%emt 0:00:03] Weighted Error Value: White=0.39/Black=0.90  Mistake:       	---       	Black=6      Inaccurate:     	White=3     	Black=4      OK:         	White=11    	Black=8      Best:        	---       	Black=2} 1-0

[Event "12th National Amateur Chess-ch 2025"]
[Site "Bihar"]
[Date "2025.03.27"]
[Round "5.14"]
[White "Chinnam Vyshnavi"]
[Black "Nivedita V C"]
[Result "1-0"]
[Annotator "TA"]
[ECO "C80"]
[WhiteElo "1793"]
[BlackElo "1950"]
[PlyCount "91"]
[EventDate "2025.03.25"]
[EventCountry "IND"]
[SourceTitle "playchess.com"]
[Source "ChessBase"]
[SourceQuality "1"]
[TimeControl "5400+30"]

{[%evp 16,91,52,52,57,56,62,35,42,32,32,33,31,0,0,0,0,0,1,0,42,39,49,61,47,47,52,59,89,17,25,31,46,20,25,20,65,0,29,30,60,102,93,35,27,0,0,0,19,-34,24,0,0,0,0,0,0,0,0,0,43,0,55,53,57,66,68,51,60,44,60,39,134,61,132,12,29998,29999]} 1. e4 {[%emt 0:00:08]} e5 {[%emt 0:02:51]} 2. Nf3 {[%emt 0:00:23]} Nc6 {[%emt 0:00:18]} 3. Bb5 {[%emt 0:00:21]} a6 {[%emt 0:00:06]} 4. Ba4 {[%emt 0:00:10]} Nf6 {[%emt 0:00:04]} 5. O-O {[%emt 0:00:07]} Nxe4 {[%emt 0:00:12]} 6. Re1 {[%emt 0:01:00]} Nc5 {[%emt 0:00:06][%cal Be4c5,Bc5d7,Bd7f6][%mdl 32]} 7. Bxc6 {[%emt 0:00:12]} dxc6 {[%emt 0:00:35]} 8. Nxe5 {[%emt 0:00:32]} Be7 {[%emt 0:00:53]} 9. d4 {[%emt 0:00:19][%cal Od1h5] [#]} Nd7 {[%emt 0:11:47] C80: Open Ruy Lopez: Sidelines and 9 Nbd2.} 10. Qe2 {[%emt 0:00:11]} Nf6 {[%emt 0:10:35][%cal Oc8e6]} 11. Nd3 $146 {[%emt 0:18:23] White is more active.} ({Predecessor:} 11. Bd2 Be6 12. Nc3 O-O 13. Nxf7 Bxf7 14. Qxe7 Qxd4 15. Be3 Qg4 16. Qxc7 Qb4 17. Qb6 {1-0 Brandao,E (2052)-Fernandes,C (2044) Paulista-ch final 2008 (6)}) 11... Bg4 {[%emt 0:10:33] White is slightly better.} 12. f3 {[%emt 0:04:35]} Be6 {[%emt 0:00:22]} 13. c3 {[%emt 0:02:35]} Nd5 {[%emt 0:04:52]} 14. Nf4 {[%emt 0:12:58]} Nxf4 {[%emt 0:00:40]} 15. Bxf4 {[%emt 0:00:02]} O-O {[%emt 0:00:30]} 16. Nd2 {[%emt 0:03:22]} c5 {[%emt 0:02:42]} 17. Nb3 {[%emt 0:04:05]} Bh4 {[%emt 0:08:53]} (17... cxd4 $5 18. Nxd4 Bc5 $11) 18. g3 {[%emt 0:05:52]} Bxb3 {[%emt 0:00:49]} 19. axb3 {[%emt 0:01:12]} Bg5 {[%emt 0:02:20]} 20. dxc5 {[%emt 0:02:12] And now Rad1 would win.} Bxf4 {[%emt 0:00:10]} 21. gxf4 {[%emt 0:00:01]} Qh4 {[%emt 0:08:54]} 22. Ra4 {[%emt 0:06:18]} ({Better is} 22. Qe5 $16) 22... Qh5 $11 {[%emt 0:03:18]} 23. Qf2 {[%emt 0:02:34]} Qd5 {[%emt 0:03:30][%cal Oa8e8]} 24. b4 {[%emt 0:09:23]} Qf5 {[%emt 0:04:43]} 25. Re4 {[%emt 0:01:15]} Rfe8 {[%emt 0:00:07]} 26. Qe2 {[%emt 0:13:44]} (26. Qe3 $14 Rf8 27. Ra1) 26... Rxe4 {[%emt 0:00:42]} (26... Kf8 $5) 27. Qxe4 {[%emt 0:00:08][%mdl 4096] Endgame KQR-KQR. White is a pawn up.} Qd7 {[%emt 0:00:16]} 28. Ra1 {[%emt 0:00:53]} Re8 {[%emt 0:05:09]} 29. Qc2 {[%emt 0:04:17]} (29. Qxb7 $16 g6 30. Qxa6 (30. Rxa6 Qd1+ 31. Kg2 Re2+ 32. Kh3 Qf1+ 33. Kh4 Qf2+ 34. Kg5 h6+ 35. Kg4 Qg1+ 36. Kh4 Rxh2#)) 29... Qd5 $14 {[%emt 0:01:12]} 30. Rf1 {[%emt 0:01:06]} h6 $36 {[%emt 0:01:21][%mdl 2048] Black has good play.} 31. Qd1 {[%emt 0:05:22]} Qc4 {[%emt 0:02:14]} 32. Qd4 {[%emt 0:00:22]} (32. Qd7 $11 Re2 33. Rd1) 32... Qe2 {[%emt 0:00:28]} (32... Qxd4+ $1 $15 33. cxd4 Re3) 33. Rf2 {[%emt 0:00:54]} (33. Qd7 {keeps more tension.} Re6 34. f5 Qe3+ 35. Kh1) 33... Qe6 {[%emt 0:01:54]} 34. Qd3 {[%emt 0:02:01]} Qf6 {[%emt 0:01:00]} 35. Qd2 {[%emt 0:00:28]} Rd8 {[%emt 0:02:38]} 36. Qc1 {[%emt 0:00:34]} Qg6+ {[%emt 0:00:20]} 37. Kh1 {[%emt 0:00:26]} Qd3 {[%emt 0:00:19] Repels Rd2} 38. Kg2 {[%emt 0:00:28]} c6 {[%emt 0:00:45]} ({Black should play} 38... Qf5 $11) 39. Qc2 {[%emt 0:00:22]} Qe3 {[%emt 0:01:36]} 40. Qe4 {[%emt 0:00:02]} Qc1 {[%emt 0:03:15]} 41. Qe7 {[%emt 0:02:56]} Rd1 {[%emt 0:02:25]} 42. Qe8+ {[%emt 0:00:00]} Kh7 {[%emt 0:00:01]} 43. Qxf7 {[%emt 0:00:00]} Rg1+ {[%emt 0:00:09]} 44. Kh3 {[%emt 0:00:00]} Rg6 {[%emt 0:03:16]} (44... Qe3 $1 $14 45. Rg2 (45. Qf5+ Kg8 $11) 45... Qxf3+ 46. Rg3 Rxg3+ 47. hxg3 h5 48. Qf5+ (48. Qxb7 $2 Qh1#) 48... Kh6 49. Qg5+ Kh7 50. Qf5+) 45. Rg2 {[%emt 0:00:15]} (45. Qf5 $1 $16 {Rg2 would kill now.} Qg1 46. Qc2) 45... Qf1 {[%emt 0:00:07][%mdl 8192] [#]} 46. Qxg6+ {[%emt 0:00:04] Weighted Error Value: White=0.23 (precise) /Black=0.29 (precise)   Loses game:     	---       	Black=1      Mistake:       	White=5     	Black=3      Inaccurate:     	White=6     	Black=5      OK:         	White=9     	Black=17     Best:        	White=3     	Black=3} 1-0